bitfinex/quotes_ETHUSD_20250923
["timestamp","ask_amount","ask_price","bid_price","bid_amount"]
[1758640697438,5.86170801,4188.2,4188.0,0.004]
[1758640697635,6.09940801,4188.2,4188.0,0.004]
[1758640698271,6.89140801,4188.2,4188.0,0.004]
[1758640698573,8.67090542,4188.2,4188.0,0.004]
[1758640699648,12.27650542,4188.2,4188.0,0.004]
[1758640700444,12.72290542,4188.2,4188.0,0.004]
[1758640701177,3.25232345,4188.2,4188.0,0.004]
[1758640701562,5.8621703,4188.2,4188.0,0.004]
[1758640702188,6.8918703,4188.2,4188.0,0.004]
[1758640702491,4.95060973,4188.2,4188.0,0.004]
[1758640702670,6.8918703,4188.2,4188.0,0.004]
[1758640702871,3.35530973,4188.2,4188.0,0.004]
[1758640703372,5.52078402,4188.2,4188.0,0.004]
[1758640703569,7.21906643,4188.2,4188.0,0.004]
[1758640703784,8.62236107,4188.2,4188.0,0.004]
[1758640704297,8.62156107,4188.2,4188.0,0.004]
[1758640705164,9.13367236,4188.2,4188.0,0.004]
[1758640707678,10.08130501,4188.2,4188.0,0.004]
[1758640707980,9.4428657,4188.2,4188.0,0.004]
[1758640708598,20.96090362,4188.2,4188.0,0.004]
[1758640710112,20.96155203,4188.2,4188.0,0.004]
[1758640710608,9.44351411,4188.2,4188.0,0.004]
[1758640711017,9.08755984,4188.2,4188.0,0.004]
[1758640711313,9.46190529,4188.2,4188.0,0.004]
[1758640711489,9.81788412,4188.2,4188.0,0.004]
[1758640711878,9.81788412,4188.2,4188.0,1e-08]
[1758640711879,6.48891092,4188.1,4188.0,1e-08]
[1758640712081,16.11321023,4188.1,4188.0,1e-08]
[1758640712280,16.79731023,4188.1,4188.0,1e-08]
[1758640712518,16.79774044,4188.1,4188.0,1e-08]
[1758640712711,15.94370948,4188.1,4188.0,1e-08]
[1758640715313,16.31808882,4188.1,4188.0,1e-08]
[1758640715514,17.60135896,4188.1,4188.0,1e-08]
[1758640716316,16.31808882,4188.1,4188.0,1e-08]
[1758640716687,15.94370948,4188.1,4188.0,1e-08]
[1758640717616,6.17994565,4187.7,4187.6,0.004]
[1758640717784,11.6706856,4187.7,4187.6,0.004]
[1758640718128,6.8256856,4187.7,4187.6,0.004]
[1758640718296,10.30946598,4187.7,4187.6,0.7132]
[1758640718485,11.74322611,4187.7,4187.6,0.7132]
[1758640718798,11.74322611,4187.7,4187.6,0.004]
[1758640718995,7.04846598,4187.7,4187.6,0.004]
[1758640719318,11.74332866,4187.7,4187.6,0.7132]
[1758640719486,8.56338301,4187.7,4187.6,0.7132]
[1758640719689,0.86852033,4187.7,4187.6,0.7132]
[1758640719886,0.35597883,4187.7,4187.6,3.10120267]
[1758640720124,0.35597883,4187.7,4187.6,3.65013252]
[1758640720417,0.13349206,4187.7,4187.6,18.15013252]
[1758640722531,2.9442,4188.5,4188.4,2.38754655]
[1758640722681,0.47593691,4188.5,4188.4,0.663]
[1758640723252,0.47593691,4188.5,4188.4,15.163]
[1758640724468,0.47593691,4188.5,4188.4,14.5]
[1758640724653,0.98961917,4188.5,4188.4,14.5]
[1758640725154,6.37710872,4188.5,4188.4,14.5]
[1758640725730,10.43010872,4188.5,4188.4,14.5]
[1758640726251,13.86684017,4188.5,4188.4,14.5]
[1758640726550,2.38780839,4188.0,4187.6,0.004]
[1758640726717,3.47593691,4187.9,4187.6,0.235]
[1758640726920,0.35673691,4187.8,4187.7,15.163]
[1758640727620,0.35673691,4187.8,4187.7,17.55094565]
[1758640727817,0.13377286,4188.4,4187.7,19.38979457]
[1758640728128,0.0002,4188.8,4187.9,2.38783161]
[1758640728435,0.35661492,4188.7,4188.4,2.38753694]
[1758640728636,0.13373425,4188.6,4188.5,0.663]
[1758640729018,0.13373425,4188.6,4188.5,15.163]
[1758640729220,0.13373425,4188.6,4188.5,17.0846]
[1758640729221,0.13293425,4188.6,4188.5,17.0846]
[1758640729431,0.13293425,4188.6,4188.5,19.47208955]
[1758640730233,0.0002,4188.8,4188.5,17.0846]
[1758640730551,0.0002,4188.8,4188.7,2.38737555]
[1758640731083,0.0002,4188.8,4188.7,17.55037555]
[1758640731259,0.0002,4188.8,4188.7,19.99321315]
[1758640731584,0.0002,4188.8,4188.7,24.04521315]
[1758640731771,0.0002,4188.8,4188.7,19.99321315]
[1758640731976,0.0002,4188.8,4188.7,24.04521315]
[1758640734564,0.0002,4188.8,4188.7,17.6058376]
[1758640734765,0.0002,4188.8,4188.7,19.215]
[1758640734951,0.0002,4188.8,4188.7,21.60237555]
[1758640735974,0.0002,4188.8,4188.7,18.552]
[1758640736175,0.0002,4188.8,4188.7,19.215]
[1758640736477,0.0002,4188.8,4188.7,21.60237555]
[1758640737264,0.0002,4188.8,4188.7,24.00136184]
[1758640739062,0.0002,4188.8,4188.7,19.94936184]
[1758640739262,0.0002,4188.8,4188.7,21.60237555]
[1758640740763,0.0002,4188.8,4188.7,18.552]
[1758640740969,0.0002,4188.8,4188.7,20.93937555]
[1758640741309,0.0002,4188.8,4188.7,14.5]
[1758640741463,6.21722108,4188.8,4188.7,14.5]
[1758640741788,7.63094225,4188.8,4188.7,14.5]
[1758640742018,7.85323806,4188.8,4188.7,14.5]
[1758640742288,3.13360697,4188.8,4188.7,18.551]
[1758640742599,3.0002,4188.8,4188.7,21.60137555]
[1758640743107,0.0002,4188.8,4188.7,21.60137555]
[1758640743883,0.0002,4188.8,4188.7,21.60537555]
[1758640744110,0.0002,4188.8,4188.7,24.04821315]
[1758640746411,0.0002,4188.8,4188.7,24.04621315]
[1758640748677,0.0002,4188.8,4188.7,24.04521315]
[1758640749015,0.0002,4188.8,4188.7,26.11021315]
[1758640749379,0.0002,4188.8,4188.7,23.38121315]
[1758640749578,0.0002,4188.8,4188.7,19.33021315]
[1758640749813,0.0002,4188.8,4188.7,23.38121315]
[1758640750310,0.0002,4188.8,4188.7,19.33021315]
[1758640750510,0.0002,4188.8,4188.7,20.93837555]
[1758640751482,0.0002,4188.8,4188.7,21.05757555]
[1758640752417,0.0002,4188.8,4188.7,14.6192]
[1758640752616,0.81084739,4188.8,4188.7,14.6192]
[1758640752819,0.81084739,4188.8,4188.7,18.551]
[1758640753605,1.03393048,4188.8,4188.7,14.5]
[1758640753906,6.42124904,4188.8,4188.7,14.5]
[1758640754106,8.60719156,4188.8,4188.7,14.5]
[1758640755640,2.38770221,4188.2,4187.9,4.051]
[1758640755803,3.58494739,4188.1,4187.9,4.051]
[1758640756002,0.70414739,4188.0,4187.8,4.051]
[1758640756335,0.35690684,4187.9,4187.6,4.055]
[1758640756542,1.03370684,4187.8,4187.6,0.004]
[1758640756705,0.13384739,4187.7,4187.6,0.004]
[1758640756905,0.13384739,4187.7,4187.6,14.504]
[1758640758009,1.03372003,4187.7,4187.6,14.504]
[1758640758209,1.03371092,4187.7,4187.6,14.504]
[1758640758908,0.58261092,4187.7,4187.6,14.504]
[1758640759107,0.35691092,4187.7,4187.6,14.504]
[1758640759307,0.13383828,4187.7,4187.6,14.504]
[1758640759557,1.03371092,4187.7,4187.6,14.504]
[1758640759755,0.35691092,4187.7,4187.6,14.504]
[1758640760046,0.13383828,4187.7,4187.6,16.89200267]
[1758640760226,0.13383828,4187.7,4187.6,14.504]
[1758640760425,0.13383828,4187.7,4187.6,18.555]
[1758640761574,0.81063828,4187.7,4187.6,18.555]
[1758640761936,0.81063828,4187.7,4187.6,14.504]
[1758640761937,7.55554632,4187.7,4187.6,14.504]
[1758640762137,5.22981286,4187.7,4187.6,14.504]
[1758640762344,5.16760067,4187.7,4187.6,14.504]
[1758640762550,8.06863582,4187.7,4187.6,14.504]
[1758640763272,8.44301671,4187.7,4187.6,14.504]
[1758640765550,8.44266892,4187.7,4187.6,14.504]
[1758640765969,6.05472327,4187.7,4187.6,14.504]
[1758640766171,8.44266892,4187.7,4187.6,14.504]
[1758640766475,7.92957942,4187.7,4187.6,14.504]
[1758640766653,7.55519853,4187.7,4187.6,14.504]
[1758640767063,5.16725288,4187.7,4187.6,14.504]
[1758640767852,7.55519853,4187.7,4187.6,14.504]
[1758640768164,8.06758038,4187.7,4187.6,0.004]
[1758640770087,7.61648038,4187.7,4187.6,0.004]
[1758640770289,12.11958038,4187.7,4187.6,0.004]
[1758640771805,11.98555338,4187.7,4187.6,0.004]
[1758640772009,9.73099382,4187.7,4187.6,0.004]
[1758640772178,11.47318566,4187.7,4187.6,0.004]
[1758640772505,11.89659584,4187.7,4187.6,0.004]
[1758640772713,7.71118834,4187.7,4187.6,0.004]
[1758640772876,11.60665706,4187.7,4187.6,0.004]
[1758640773076,11.15555706,4187.7,4187.6,0.004]
[1758640773271,11.60665706,4187.7,4187.6,0.004]
[1758640773505,12.11897953,4187.7,4187.6,0.004]
[1758640773707,9.21871141,4187.7,4187.6,0.004]
[1758640774208,5.19975592,4187.7,4187.6,0.004]
[1758640774411,4.97840847,4187.7,4187.6,0.2489]
[1758640774710,0.13340847,4187.7,4187.6,0.703]
[1758640775082,0.13340847,4187.7,4187.6,15.203]
[1758640775316,0.13340847,4187.7,4187.6,17.59100267]
[1758640775497,0.13340847,4187.7,4187.6,15.203]
[1758640777309,0.13340847,4187.7,4187.6,14.504]
[1758640778116,6.53905412,4187.7,4187.6,14.504]
[1758640778318,8.82280632,4187.7,4187.6,14.504]
[1758640778618,8.37170632,4187.7,4187.6,14.504]
[1758640779020,4.37305208,4187.7,4187.6,14.504]
[1758640779389,11.26509773,4187.7,4187.6,14.504]
[1758640780523,8.42605208,4187.7,4187.6,14.504]
[1758640780722,11.32780723,4187.7,4187.6,14.504]
[1758640780892,8.93986158,4187.7,4187.6,14.504]
[1758640781093,11.32780723,4187.7,4187.6,14.504]
[1758640782112,13.2068017,4187.7,4187.6,14.504]
[1758640782436,13.07419323,4187.7,4187.6,14.504]
[1758640782791,12.62379323,4187.7,4187.6,14.504]
[1758640783224,12.39809323,4187.7,4187.6,14.504]
[1758640783739,10.01014758,4187.7,4187.6,14.504]
[1758640784109,3.73655311,4187.7,4187.6,15.1761]
[1758640784992,3.73655311,4187.7,4187.6,17.56410267]
[1758640785198,3.73655311,4187.7,4187.6,15.1761]
[1758640786594,7.78855311,4187.7,4187.6,14.504]
[1758640786824,8.03795311,4187.7,4187.6,14.504]
[1758640787041,10.8974694,4187.7,4187.6,14.504]
[1758640787217,13.98521505,4187.7,4187.6,0.004]
[1758640788204,13.98623701,4187.7,4187.6,0.004]
[1758640788835,13.53583701,4187.7,4187.6,0.004]
[1758640789662,4.52957507,4187.7,4187.6,0.004]
[1758640789946,9.2261382,4187.7,4187.6,0.004]
[1758640790253,4.3821382,4187.7,4187.6,0.6761]
[1758640790548,3.73757507,4187.7,4187.6,0.6761]
[1758640790753,3.73757507,4187.7,4187.6,0.4398]
[1758640790951,3.73757507,4187.7,4187.6,0.004]
[1758640791124,3.87184594,4187.7,4187.6,0.004]
[1758640791511,3.87184594,4187.7,4187.6,0.6761]
[1758640792609,3.87184594,4187.7,4187.6,0.004]
[1758640792857,19.09802331,4187.7,4187.6,0.004]
[1758640793010,18.45346018,4187.7,4187.6,0.004]
[1758640793217,19.30887693,4187.7,4187.6,0.004]
[1758640793522,18.45346018,4187.7,4187.6,0.004]
[1758640793722,20.51946018,4187.7,4187.6,0.004]
[1758640794743,10.92513943,4187.7,4187.6,0.004]
[1758640796068,10.92513943,4187.7,4187.2,0.004]
[1758640796069,3.18017376,4187.3,4187.2,0.004]
[1758640796223,7.91134897,4187.3,4187.2,0.004]
[1758640796426,11.96334897,4187.3,4187.2,0.004]
[1758640796763,0.87184594,4187.3,4187.2,0.004]
[1758640796969,5.56831595,4187.3,4187.2,0.6761]
[1758640797123,8.56831595,4187.3,4187.2,0.6761]
[1758640797955,9.36031595,4187.3,4187.2,0.004]
[1758640798123,12.77045423,4187.3,4187.2,0.004]
[1758640798344,12.12598422,4187.3,4187.2,0.004]
[1758640798536,12.98531349,4187.3,4187.2,0.004]
[1758640798859,12.12598422,4187.3,4187.2,0.004]
[1758640799277,12.12593811,4187.3,4187.2,0.004]
[1758640800369,13.470058,4187.3,4187.2,0.004]
[1758640800525,12.82575388,4187.3,4187.2,0.004]
[1758640801025,12.82572146,4187.3,4187.2,0.004]
[1758640803448,12.82568246,4187.3,4187.2,0.004]
[1758640803648,12.37528246,4187.3,4187.2,0.004]
[1758640803881,4.66374418,4187.3,4187.2,0.004]
[1758640804087,11.10311794,4187.3,4187.2,0.2403]
[1758640804285,11.10311794,4187.3,4187.2,0.6761]
[1758640804644,11.10311794,4187.3,4187.2,15.1761]
[1758640805280,8.56708716,4187.3,4187.2,15.1761]
[1758640805448,0.99014418,4187.3,4187.2,16.69411]
[1758640805653,0.87094418,4187.3,4187.2,16.69411]
[1758640806272,0.87094418,4187.3,4187.2,19.08234079]
[1758640806474,0.87094418,4187.3,4187.2,16.69411]
[1758640807277,0.87094418,4187.3,4187.2,15.1761]
[1758640808491,0.87094418,4187.3,4187.2,14.504]
[1758640808492,3.25911794,4187.3,4187.2,14.504]
[1758640808675,0.99014418,4187.3,4187.2,14.504]
[1758640808850,3.37831794,4187.3,4187.2,14.504]
[1758640810010,3.99014418,4187.3,4187.2,14.504]
[1758640810216,6.37831794,4187.3,4187.2,14.504]
[1758640812006,7.17031794,4187.3,4187.2,14.504]
[1758640814436,8.87770851,4187.3,4187.2,14.504]
[1758640814583,9.30830851,4187.3,4187.2,14.504]
[1758640815191,9.30830851,4187.3,4187.2,0.004]
[1758640815393,10.16763778,4187.3,4187.2,0.004]
[1758640815730,0.792,4186.9,4186.8,1e-08]
[1758640815901,41.83399774,4186.9,4186.8,1e-08]
[1758640816233,44.31376037,4186.9,4186.8,1e-08]
[1758640816393,43.02472101,4186.9,4186.8,1e-08]
[1758640816590,0.792,4186.7,4186.3,0.004]
[1758640816794,6.18068717,4186.4,4186.3,1e-08]
[1758640817132,13.26057396,4186.4,4186.3,1e-08]
[1758640817334,13.93567396,4186.4,4186.3,1e-08]
[1758640817635,13.07691255,4186.4,4186.3,1e-08]
[1758640819206,14.36337032,4186.4,4186.3,1e-08]
[1758640819426,9.88077032,4186.4,4186.3,1e-08]
[1758640819751,6.86426997,4186.4,4186.3,1e-08]
[1758640819913,7.92555795,4186.4,4186.3,1e-08]
[1758640820107,10.31424512,4186.4,4186.3,1e-08]
[1758640820308,11.10624512,4186.4,4186.3,1e-08]
[1758640821131,8.71755795,4186.4,4186.3,1e-08]
[1758640821926,8.71755795,4186.4,4186.3,14.50000001]
[1758640822257,4.66555795,4186.4,4186.3,14.50000001]
[1758640822408,8.71755795,4186.4,4186.3,14.50000001]
[1758640822755,4.66555795,4186.4,4186.3,14.50000001]
[1758640822906,8.71755795,4186.4,4186.3,14.50000001]
[1758640823540,11.10624512,4186.4,4186.3,14.50000001]
[1758640823839,8.71755795,4186.4,4186.3,14.50000001]
[1758640824239,11.10624512,4186.4,4186.3,14.50000001]
[1758640824439,8.9566958,4186.4,4186.3,14.50000001]
[1758640824638,14.08344039,4186.4,4186.3,1e-08]
[1758640824861,13.4402958,4186.4,4186.3,1e-08]
[1758640825361,15.5072958,4186.4,4186.3,1e-08]
[1758640825524,16.36488419,4186.4,4186.3,1e-08]
[1758640825726,10.24588419,4186.4,4186.3,1e-08]
[1758640826164,16.36488419,4186.4,4186.3,1e-08]
[1758640826380,15.5072958,4186.4,4186.3,1e-08]
[1758640827656,12.44316544,4186.4,4186.3,1e-08]
[1758640827849,8.71285261,4186.4,4186.3,1e-08]
[1758640828164,13.17390193,4186.4,4186.3,1e-08]
[1758640828360,4.66621476,4186.4,4186.3,1e-08]
[1758640828586,4.15059149,4186.4,4186.3,0.68250001]
[1758640828765,0.35859149,4186.4,4186.3,0.68250001]
[1758640828964,0.35779149,4186.4,4186.3,0.68250001]
[1758640829262,0.35779149,4186.4,4186.3,14.74820001]
[1758640829442,0.35779149,4186.4,4186.3,19.08382903]
[1758640829642,0.13485626,4186.4,4186.3,19.08382903]
[1758640830153,0.13485626,4186.4,4186.3,15.18250001]
[1758640830360,7.36754343,4186.4,4186.3,14.50000001]
[1758640830664,10.88156053,4186.4,4186.3,14.50000001]
[1758640831270,11.55666053,4186.4,4186.3,14.50000001]
[1758640831769,11.12606053,4186.4,4186.3,14.50000001]
[1758640831935,13.0529006,4186.4,4186.3,14.50000001]
[1758640832536,9.98911343,4186.4,4186.3,14.50000001]
[1758640832736,10.88156053,4186.4,4186.3,14.50000001]
[1758640832962,10.88156352,4186.4,4186.3,14.50000001]
[1758640833161,8.49287649,4186.4,4186.3,14.50000001]
[1758640833338,10.74770427,4186.4,4186.3,14.50000001]
[1758640835068,8.49285937,4186.4,4186.3,14.50000001]
[1758640835273,10.88154654,4186.4,4186.3,14.50000001]
[1758640835484,10.74770427,4186.4,4186.3,14.50000001]
[1758640836646,12.99646183,4186.4,4186.3,14.50000001]
[1758640837281,12.99646183,4186.4,4186.3,1e-08]
[1758640837479,13.63911524,4186.4,4186.3,1e-08]
[1758640837851,12.99646183,4186.4,4186.3,1e-08]
[1758640838575,13.85405022,4186.4,4186.3,1e-08]
[1758640839160,12.99646183,4186.4,4186.3,1e-08]
[1758640839361,13.85405351,4186.4,4186.3,1e-08]
[1758640839685,14.38836183,4186.4,4186.3,1e-08]
[1758640840038,15.92105351,4186.4,4186.3,1e-08]
[1758640840442,15.06346183,4186.4,4186.3,1e-08]
[1758640841189,15.28682423,4186.4,4186.3,1e-08]
[1758640841395,3.18080129,4186.2,4186.1,0.02]
[1758640841548,11.96211782,4186.2,4186.1,0.02]
[1758640841748,12.62201782,4186.2,4186.1,0.02]
[1758640842061,11.76394514,4186.2,4186.1,0.02]
[1758640842263,12.62229213,4186.2,4186.1,0.02]
[1758640842594,13.26580395,4186.2,4186.1,0.02]
[1758640843087,14.55226172,4186.2,4186.1,0.02]
[1758640843274,14.55239307,4186.2,4186.1,0.02]
[1758640843908,13.2659353,4186.2,4186.1,0.02]
[1758640844108,13.3859241,4186.2,4186.1,0.02]
[1758640844306,6.1809725,4185.9,4185.8,0.004]
[1758640844634,14.27025209,4185.9,4185.8,0.004]
[1758640844838,14.93015209,4185.9,4185.8,0.004]
[1758640845046,14.93015209,4185.9,4185.8,1e-08]
[1758640845047,41.51023542,4185.9,4185.8,1e-08]
[1758640845200,8.69808665,4185.7,4185.4,0.004]
[1758640845531,12.62500697,4185.7,4185.4,0.004]
[1758640845831,13.28490697,4185.7,4185.4,0.004]
[1758640849003,12.85110697,4185.7,4185.4,0.004]
[1758640849207,16.20552454,4185.7,4185.4,0.004]
[1758640849626,14.91910697,4185.7,4185.4,0.004]
[1758640850547,10.22262976,4185.7,4185.4,0.004]
[1758640850750,15.13305531,4185.7,4185.4,0.004]
[1758640850953,5.89542354,4185.7,4185.4,0.004]
[1758640851115,7.36599799,4185.7,4185.6,0.7101]
[1758640851314,5.29899799,4185.7,4185.6,0.7101]
[1758640851756,4.78498089,4185.7,4185.6,0.7101]
[1758640851921,1.24599799,4185.7,4185.6,0.7101]
[1758640852122,6.09099799,4185.7,4185.6,0.7101]
[1758640852426,9.09099799,4185.7,4185.6,0.7101]
[1758640853725,5.03799799,4185.7,4185.6,0.7101]
[1758640853927,3.73118089,4185.7,4185.6,1.69066855]
[1758640854334,4.24519799,4185.7,4185.6,1.69066855]
[1758640854560,4.24519799,4185.7,4185.6,0.7101]
[1758640854762,4.24519799,4185.7,4185.6,17.59924373]
[1758640854763,0.13306435,4185.7,4185.6,17.59924373]
[1758640855150,0.2232485,4186.2,4186.1,2.38885836]
[1758640855323,0.2232485,4186.2,4186.1,0.7061]
[1758640856571,0.2232485,4186.2,4186.1,3.09495836]
[1758640856774,0.2232485,4186.2,4186.1,0.7061]
[1758640858025,0.2232485,4186.2,4186.1,3.09495836]
[1758640858243,0.2232485,4186.3,4186.1,3.09495836]
[1758640858443,0.2232485,4186.2,4185.6,17.01228794]
[1758640858669,0.1202,4186.4,4185.7,5.75362879]
[1758640858862,0.22310055,4186.3,4185.7,4.052]
[1758640859063,0.22310055,4186.2,4186.1,2.38885836]
[1758640859359,0.22310055,4186.2,4186.1,3.09495836]
[1758640859563,0.22310055,4186.2,4186.1,17.59495836]
[1758640860274,0.22310055,4186.2,4186.1,15.2061]
[1758640860763,0.22310055,4186.2,4186.1,14.5]
[1758640860962,1.01510055,4186.2,4186.1,14.5]
[1758640861149,11.97402166,4186.2,4186.1,14.5]
[1758640861349,12.48811931,4186.2,4186.1,14.5]
[1758640861555,8.5811982,4186.2,4186.1,14.5]
[1758640861764,4.5291982,4186.2,4186.1,14.5]
[1758640861966,7.27510055,4186.2,4186.1,15.2061]
[1758640862169,7.27515758,4186.2,4186.1,15.2061]
[1758640862332,7.78937554,4186.2,4186.1,15.2061]
[1758640862736,7.27515758,4186.2,4186.1,15.2061]
[1758640864172,0.22315758,4186.2,4186.1,18.22941361]
[1758640864374,0.34235758,4186.3,4186.2,2.38880129]
[1758640864539,0.34235758,4186.3,4186.2,2.4126893]
[1758640864751,0.34235758,4186.3,4186.2,0.7061]
[1758640865090,0.34235758,4186.3,4186.1,14.5]
[1758640865235,0.22315758,4186.2,4186.1,14.5]
[1758640865437,3.0,4186.0,4185.6,0.004]
[1758640865738,3.792,4185.8,4185.6,0.004]
[1758640865937,0.35704255,4185.7,4185.6,0.004]
[1758640866213,8.42714255,4185.7,4185.6,0.004]
[1758640866483,11.33043613,4185.7,4185.6,0.004]
[1758640866643,12.76667992,4185.7,4185.6,0.004]
[1758640867165,11.33043613,4185.7,4185.6,0.004]
[1758640867838,11.10433613,4185.7,4185.6,0.004]
[1758640868566,11.33043613,4185.7,4185.6,0.004]
[1758640870444,11.76423613,4185.7,4185.6,0.004]
[1758640870875,12.40725083,4185.7,4185.6,0.004]
[1758640871084,13.97261637,4185.7,4185.6,0.004]
[1758640871582,13.70418178,4185.7,4185.6,0.004]
[1758640872156,14.56160733,4185.7,4185.6,0.004]
[1758640873042,13.70418178,4185.7,4185.6,0.004]
[1758640873761,14.99059935,4185.7,4185.6,1e-08]
[1758640875796,14.9906334,4185.7,4185.6,1e-08]
[1758640876700,14.61605329,4185.7,4185.6,1e-08]
[1758640877194,13.32963572,4185.7,4185.6,1e-08]
[1758640877402,13.32963572,4185.7,4185.2,0.004]
[1758640877608,6.18137207,4185.2,4185.1,1e-08]
[1758640877803,13.1716556,4185.2,4185.1,1e-08]
[1758640878014,3.18154335,4184.9,4184.3,0.004]
[1758640878181,11.10482688,4184.9,4184.3,0.004]
[1758640878393,12.13463737,4184.9,4184.3,0.004]
[1758640878705,12.81603737,4184.9,4184.3,0.004]
[1758640878904,12.81523737,4184.9,4184.3,0.004]
[1758640880116,14.10016527,4184.9,4184.3,0.004]
[1758640880327,9.81896527,4184.9,4184.3,0.004]
[1758640880612,12.37902688,4184.9,4184.5,0.235]
[1758640880780,3.87128353,4184.9,4184.8,0.6946]
[1758640880981,7.40909142,4184.9,4184.8,0.6946]
[1758640881311,10.31282688,4184.9,4184.8,0.6946]
[1758640881511,10.68745453,4184.9,4184.8,0.6946]
[1758640881808,11.47945453,4184.9,4184.8,0.004]
[1758640882320,5.03791118,4184.9,4184.8,0.6946]
[1758640882475,8.57571907,4184.9,4184.8,0.6946]
[1758640882680,9.08991118,4184.9,4184.8,0.6946]
[1758640883103,11.47945453,4184.9,4184.8,0.6946]
[1758640883614,9.08991118,4184.9,4184.8,0.6946]
[1758640883816,11.47945453,4184.9,4184.8,0.6946]
[1758640884181,7.42745453,4184.9,4184.8,0.6946]
[1758640884392,11.48045453,4184.9,4184.8,0.004]
[1758640884612,12.75555561,4184.9,4184.8,0.004]
[1758640884803,13.39767819,4184.9,4184.8,0.004]
[1758640885022,12.52635561,4184.9,4184.8,0.004]
[1758640885315,5.03791118,4184.9,4184.8,0.4596]
[1758640885527,8.57671907,4184.9,4184.8,0.6946]
[1758640885697,9.09091118,4184.9,4184.8,0.6946]
[1758640886586,11.48045453,4184.9,4184.8,0.6946]
[1758640886932,11.10582688,4184.9,4184.8,0.6946]
[1758640887218,8.71628353,4184.9,4184.8,0.6946]
[1758640887421,11.10582688,4184.9,4184.8,0.6946]
[1758640887629,12.72636514,4184.9,4184.8,0.004]
[1758640888128,14.79423254,4184.9,4184.8,0.004]
[1758640889296,15.43635512,4184.9,4184.8,0.004]
[1758640889701,7.05269428,4184.9,4184.8,0.004]
[1758640890029,13.17369428,4184.9,4184.8,0.004]
[1758640890813,13.17359332,4184.9,4184.8,0.004]
[1758640892127,13.54834474,4184.9,4184.8,0.004]
[1758640892628,14.19046732,4184.9,4184.8,0.004]
[1758640892787,15.9340757,4184.9,4184.8,0.004]
[1758640892987,15.14651607,4184.9,4184.8,0.004]
[1758640893387,16.45489392,4184.9,4184.8,0.004]
[1758640894427,15.59871607,4184.9,4184.8,0.004]
[1758640894931,15.59927478,4184.9,4184.8,0.004]
[1758640895226,15.59927407,4184.9,4184.8,0.004]
[1758640895393,16.88420197,4184.9,4184.8,0.004]
[1758640896207,17.25887327,4184.9,4184.8,0.004]
[1758640896416,10.45647327,4184.9,4184.8,0.004]
[1758640896621,16.88420197,4184.9,4184.8,0.004]
[1758640896907,16.88445505,4184.9,4184.8,0.004]
[1758640897120,16.52667174,4184.9,4184.8,0.004]
[1758640897938,15.59958808,4184.9,4184.8,0.004]
[1758640898242,15.59958808,4184.9,4184.3,0.004]
[1758640898243,6.30080045,4184.8,4184.3,0.004]
[1758640898440,3.0,4184.0,4183.7,0.6906]
[1758640898744,3.0,4184.0,4182.6,2.53395916]
[1758640898745,1.4361836,4183.8,4183.1,0.04390571]
[1758640899044,0.1192,4183.5,4183.1,0.04390571]
[1758640899338,3.0,4183.4,4183.2,0.6906]
[1758640899643,3.51419211,4183.4,4183.3,0.6906]
[1758640900934,3.51419211,4183.4,4183.3,0.71450457]
[1758640901146,3.8723422,4183.4,4183.3,0.6906]
[1758640901443,0.8723422,4183.4,4183.3,3.39117083]
[1758640901647,0.35815009,4183.4,4183.3,3.39117083]
[1758640903031,0.35815009,4183.4,4183.3,1.00071354]
[1758640903236,0.35815009,4183.4,4183.3,0.6906]
[1758640903433,0.35815009,4183.4,4183.3,3.08105729]
[1758640903809,0.35735009,4183.4,4183.3,3.08105729]
[1758640904008,0.13350628,4183.4,4183.3,3.20025729]
[1758640905951,0.35742059,4183.4,4183.3,3.20025729]
[1758640906634,0.13350628,4183.4,4183.3,3.20025729]
[1758640906818,0.35743182,4183.4,4183.3,1.37088259]
[1758640907019,0.35743182,4183.4,4183.3,3.20025729]
[1758640907214,0.35743182,4183.4,4183.3,0.8098]
[1758640907432,0.22392554,4183.4,4183.3,0.8098]
[1758640907614,0.22392554,4183.4,4183.3,3.20025729]
[1758640908323,0.22392554,4183.4,4183.3,3.22416186]
[1758640908525,0.22392554,4183.4,4183.3,3.78763452]
[1758640908759,0.22392554,4183.4,4183.3,3.76372995]
[1758640909114,0.22392554,4183.4,4183.3,0.68267266]
[1758640909318,0.22392554,4183.4,4183.1,0.2464]
[1758640909533,0.22392554,4183.3,4183.1,0.02]
[1758640909739,3.0,4183.6,4183.1,0.02]
[1758640909740,0.22392554,4183.2,4183.1,0.02]
[1758640911162,0.73993683,4183.2,4183.1,0.02]
[1758640911628,0.85843331,4183.2,4183.1,0.02]
[1758640911964,0.98053683,4183.2,4183.1,0.02]
[1758640912122,0.73993683,4183.2,4183.1,0.02]
[1758640914437,0.73993683,4183.2,4183.1,3.08337158]
[1758640914653,0.73993683,4183.2,4183.1,0.96941081]
[1758640914856,0.73993683,4183.2,4183.1,3.35998239]
[1758640915052,0.22392554,4183.2,4183.1,3.35998239]
[1758640915435,0.22392554,4183.2,4183.1,3.3838881]
[1758640916055,0.35824862,4183.2,4183.1,0.024]
[1758640916354,0.35824862,4183.2,4183.1,3.08737158]
[1758640916554,0.35825798,4183.2,4183.1,3.11127729]
[1758640916742,0.35825798,4183.2,4183.1,3.23047729]
[1758640916948,0.35825798,4183.2,4183.1,3.20657158]
[1758640917141,0.35825798,4183.2,4183.1,3.76629728]
[1758640917844,0.35825798,4183.2,4183.1,0.024]
[1758640918024,0.35825798,4183.2,4183.1,0.2504]
[1758640918224,0.35825798,4183.2,4183.1,2.64097158]
[1758640919256,0.35825798,4183.2,4183.1,3.11127729]
[1758640919933,0.35825798,4183.2,4183.1,3.20657158]
[1758640920129,0.35825798,4183.2,4183.1,4.19540303]
[1758640920336,0.13433244,4183.2,4183.1,4.17149732]
[1758640920964,0.13433244,4183.2,4183.1,18.67149732]
[1758640921553,0.001,4183.4,4183.3,2.39045729]